bitfinex/quotes_SOLUSD_20240816
["timestamp","ask_amount","ask_price","bid_price","bid_amount"]
[1723804498157,45.0,143.51,143.49,6.969]
[1723804498358,45.0,143.52,143.49,6.969]
[1723804501939,0.37647,143.53,143.5,6.9684]
[1723804502146,45.37647,143.53,143.5,6.9684]
[1723804511459,45.25098,143.53,143.5,6.9684]
[1723804511661,45.0,143.53,143.5,6.9684]
[1723804511965,0.693425,143.53,143.5,6.9684]
[1723804512760,45.693425,143.53,143.5,6.9684]
[1723804513076,45.0,143.53,143.5,6.9684]
[1723804513574,45.693425,143.53,143.5,6.9684]
[1723804514246,45.5092383,143.53,143.5,6.9684]
[1723804514579,44.8158133,143.53,143.5,6.9684]
[1723804515677,44.8158133,143.53,143.48,16.1299]
[1723804515850,44.9413033,143.53,143.48,16.1299]
[1723804516844,44.9413033,143.53,143.51,6.968]
[1723804517050,0.12549,143.53,143.51,6.968]
[1723804517355,0.37647,143.53,143.51,6.968]
[1723804518756,0.37647,143.53,143.5,6.9684]
[1723804520984,0.12549,143.53,143.5,6.9684]
[1723804521154,45.0,143.54,143.5,6.9684]
[1723804521787,45.0,143.54,143.51,6.9681]
[1723804522773,45.0,143.54,143.52,6.9675]
[1723804522972,45.25098,143.55,143.52,6.9675]
[1723804524481,29.70517986,143.6,143.54,6.9666]
[1723804524482,6.9648,143.58,143.54,6.9666]
[1723804524700,8.43695786,143.59,143.52,20.0]
[1723804524911,15.40165786,143.59,143.54,20.0]
[1723804525213,6.9647,143.59,143.54,20.0]
[1723804525372,14.11414887,143.62,143.56,6.9657]
[1723804525373,6.9638,143.6,143.56,6.9657]
[1723804525779,6.9631,143.62,143.57,6.9649]
[1723804526506,15.39935786,143.63,143.58,6.9647]
[1723804527096,15.39935786,143.63,143.58,6.9646]
[1723804527097,45.50196,143.62,143.58,6.9646]
[1723804527286,0.37647,143.62,143.56,20.0]
[1723804527485,0.37647,143.62,143.57,6.965]
[1723804528506,0.12549,143.61,143.57,6.965]
[1723804528979,45.12549,143.61,143.57,6.965]
[1723804530197,0.25098,143.62,143.58,6.9647]
[1723804530407,45.25098,143.62,143.58,6.9647]
[1723804531271,6.9619,143.64,143.59,15.4803]
[1723804531808,0.693425,143.63,143.59,15.4803]
[1723804532108,0.693425,143.63,143.6,6.9635]
[1723804532279,6.9619,143.64,143.59,22.4445]
[1723804532608,20.0,143.65,143.59,22.4445]
[1723804532609,7.08779,143.63,143.59,22.4445]
[1723804532785,45.0,143.62,143.59,22.4445]
[1723804535109,45.12549,143.63,143.59,22.4445]
[1723804536099,52.08779,143.63,143.59,22.4445]
[1723804539698,51.9623,143.63,143.59,22.4445]
[1723804541412,51.9623,143.63,143.59,15.4803]
[1723804544010,7.907205,143.62,143.59,15.4803]
[1723804544333,45.0,143.61,143.59,15.4803]
[1723804544502,0.693425,143.6,143.57,6.9651]
[1723804545431,0.693425,143.6,143.56,15.3876]
[1723804545432,0.12549,143.59,143.56,15.3876]
[1723804545628,0.25098,143.59,143.56,15.3876]
[1723804545933,0.693425,143.58,143.56,15.3876]
[1723804546308,0.693425,143.58,143.56,22.3532]
[1723804546511,6.9625,143.63,143.58,6.9647]
[1723804546720,6.9625,143.63,143.59,6.9642]
[1723804550118,0.693425,143.62,143.59,6.9642]
[1723804550437,45.693425,143.62,143.58,6.9646]
[1723804551639,45.0,143.62,143.58,6.9646]
[1723804553025,51.9628,143.62,143.58,6.9646]
[1723804553236,45.0,143.62,143.56,15.3876]
[1723804553438,7.08839,143.62,143.57,6.9649]
[1723804553623,45.0,143.61,143.57,6.9649]
[1723804554249,45.0,143.61,143.58,6.4647]
[1723804555817,45.0,143.61,143.59,6.9642]
[1723804556032,45.12549,143.62,143.59,6.9642]
[1723804556946,45.12549,143.62,143.58,6.9645]
[1723804558547,45.0,143.62,143.58,6.9645]
[1723804560247,45.0,143.62,143.59,6.9642]
[1723804560751,0.50196,143.61,143.54,20.0]
[1723804560918,7.46566,143.61,143.56,6.9656]
[1723804561115,45.0,143.6,143.57,6.9651]
[1723804561354,45.0,143.6,143.56,6.9655]
[1723804561822,45.0,143.6,143.57,6.9652]
[1723804563716,6.9649,143.58,143.54,6.9665]
[1723804564054,0.12549,143.56,143.52,15.0453]
[1723804564222,0.693425,143.55,143.52,15.0453]
[1723804564423,0.693425,143.55,143.52,22.0126]
[1723804565928,45.25098,143.56,143.52,22.0126]
[1723804566123,0.12549,143.56,143.52,35.0453]
[1723804566325,6.9648,143.58,143.52,35.0453]
[1723804566541,7.21538,143.59,143.52,35.0453]
[1723804566738,45.0,143.58,143.52,35.0453]
[1723804566930,52.21538,143.59,143.55,6.9661]
[1723804567133,0.693425,143.58,143.55,6.9661]
[1723804567427,7.658225,143.58,143.52,15.0453]
[1723804567643,0.818915,143.57,143.53,6.967]
[1723804567822,45.818915,143.57,143.53,6.967]
[1723804568021,45.12549,143.57,143.54,6.9664]
[1723804568252,7.08989,143.59,143.54,6.9664]
[1723804568459,45.12549,143.58,143.55,6.9661]
[1723804569326,0.693425,143.57,143.55,6.9661]
[1723804570184,45.12549,143.58,143.55,6.9661]
[1723804570869,0.693425,143.57,143.55,6.9661]
[1723804571735,0.693425,143.57,143.52,15.0453]
[1723804571736,6.9661,143.56,143.52,15.0453]
[1723804571935,7.658725,143.57,143.53,6.9669]
[1723804573075,45.12549,143.58,143.54,6.9666]
[1723804573076,52.09039,143.58,143.54,6.9666]
[1723804573754,0.693425,143.57,143.54,6.9666]
[1723804574172,52.09039,143.58,143.54,6.9666]
[1723804576573,45.12549,143.58,143.54,6.9666]
[1723804576883,45.12549,143.58,143.54,26.9666]
[1723804577180,7.08929,143.6,143.52,35.0453]
[1723804577384,27.21528,143.59,143.55,6.9661]
[1723804578708,27.21528,143.59,143.52,15.0453]
[1723804578709,45.12549,143.58,143.54,6.9665]
[1723804581800,52.09019,143.58,143.54,6.9665]
[1723804585418,45.0,143.58,143.55,6.9661]
[1723804585589,0.12549,143.59,143.52,35.0453]
[1723804585797,7.34057,143.6,143.55,6.966]
[1723804586013,45.0,143.59,143.55,6.966]
[1723804586618,45.0,143.59,143.56,6.9655]
[1723804586788,7.34057,143.6,143.56,6.9655]
[1723804587401,1.21069855,143.64,143.6,6.9636]
[1723804587717,17.2353,143.67,143.6,6.9636]
[1723804587906,17.2353,143.67,143.61,6.9632]
[1723804587907,6.9614,143.65,143.61,6.9632]
[1723804589303,6.9607,143.67,143.62,6.9628]
[1723804589509,20.0,143.66,143.62,6.9628]
[1723804590197,27.654325,143.66,143.62,6.9628]
[1723804590418,6.9616,143.65,143.6,6.9637]
[1723804590601,6.9616,143.65,143.57,35.2124]
[1723804590991,0.693425,143.64,143.57,35.2124]
[1723804591211,0.693425,143.64,143.6,6.9636]
[1723804591212,51.9618,143.64,143.6,6.9636]
[1723804591421,0.693425,143.63,143.6,6.9636]
[1723804591623,45.0,143.64,143.6,6.9636]
[1723804591809,6.9614,143.65,143.61,6.9632]
[1723804593127,0.12549,143.65,143.57,22.1775]
[1723804593330,0.12549,143.63,143.53,20.0]
[1723804593512,6.9642,143.6,143.55,6.9661]
[1723804593700,45.944405,143.59,143.55,6.9661]
[1723804594835,0.693425,143.58,143.55,6.9661]
[1723804595614,0.12549,143.58,143.54,6.9665]
[1723804596137,52.21528,143.59,143.55,6.9661]
[1723804596434,6.9638,143.6,143.55,6.9661]
[1723804596797,7.09019,143.58,143.54,6.9665]
[1723804597000,0.693425,143.57,143.53,15.0974]
[1723804597200,0.693425,143.57,143.52,6.9672]
[1723804597201,7.658725,143.57,143.52,6.9672]
[1723804598434,7.658725,143.57,143.53,6.9671]
[1723804599320,0.693425,143.57,143.53,6.9671]
[1723804599528,45.0,143.57,143.53,6.9671]
[1723804600341,0.693425,143.56,143.53,6.9671]
[1723804601467,45.0,143.57,143.53,6.9671]
[1723804601639,45.693425,143.57,143.53,6.9671]
[1723804603648,45.0,143.57,143.53,6.9671]
[1723804605345,45.0,143.57,143.49,35.0287]
[1723804605534,45.12549,143.58,143.54,6.9665]
[1723804605740,52.09029,143.58,143.54,6.9665]
[1723804605940,0.693425,143.57,143.54,6.9665]
[1723804608462,52.09029,143.58,143.54,6.9665]
[1723804608970,0.693425,143.57,143.54,6.9665]
[1723804615674,0.693425,143.57,143.55,6.9662]
[1723804615868,45.12549,143.58,143.55,6.9662]
[1723804616377,45.12549,143.58,143.54,6.9665]
[1723804616880,6.9641,143.6,143.52,20.0]
[1723804617078,6.9641,143.6,143.55,6.9658]
[1723804617264,6.9642,143.59,143.55,6.9658]
[1723804617973,6.9639,143.6,143.56,6.9657]
[1723804618168,7.34087,143.59,143.5,20.0]
[1723804618372,52.34087,143.59,143.5,20.0]
[1723804618682,0.12549,143.58,143.5,20.0]
[1723804618888,0.12549,143.58,143.55,6.9661]
[1723804619893,7.09019,143.58,143.5,20.0]
[1723804620489,0.693425,143.57,143.5,20.0]
[1723804623290,0.693425,143.57,143.54,6.9663]
[1723804627223,0.12549,143.54,143.49,15.0287]
[1723804627388,0.818915,143.54,143.49,21.9977]
[1723804627582,0.818915,143.54,143.5,6.9684]
[1723804627925,45.818915,143.54,143.5,6.9684]
[1723804631122,45.818915,143.54,143.51,6.9681]
[1723804631580,45.818915,143.54,143.5,6.9685]
[1723804631581,0.12549,143.52,143.5,6.9685]
[1723804632518,7.786915,143.52,143.47,6.9696]
[1723804632691,45.0,143.51,143.48,6.9695]
[1723804632889,0.693425,143.5,143.48,6.9695]
[1723804633485,0.693425,143.5,143.47,6.9699]
[1723804633685,0.693425,143.5,143.46,6.9704]
[1723804634784,0.25098,143.49,143.46,6.9704]
[1723804638138,0.25098,143.49,143.47,6.97]
[1723804638318,0.12549,143.49,143.47,6.97]
[1723804638518,0.25098,143.5,143.47,6.97]
[1723804638740,7.09279,143.53,143.44,20.102994]
[1723804638951,0.12549,143.52,143.44,0.102994]
[1723804639160,0.12549,143.52,143.48,6.9694]
[1723804639365,6.9687,143.5,143.46,6.9702]
[1723804639660,6.9687,143.5,143.44,0.102994]
[1723804639661,0.12549,143.5,143.47,6.97]
[1723804640155,45.25098,143.5,143.47,6.97]
[1723804640335,0.12549,143.5,143.47,6.97]
[1723804640656,0.12549,143.51,143.46,6.9705]
[1723804640865,0.12549,143.5,143.47,6.97]
[1723804641156,0.25098,143.5,143.47,6.97]
[1723804641758,45.25098,143.5,143.47,6.97]
[1723804643361,0.25098,143.5,143.47,6.97]
[1723804643745,0.25098,143.5,143.44,0.102994]
[1723804643746,0.25098,143.5,143.48,6.9696]
[1723804646367,0.12549,143.5,143.48,6.9696]
[1723804646557,6.9672,143.53,143.49,6.969]
[1723804647444,0.693425,143.52,143.49,6.969]
[1723804647875,45.693425,143.52,143.49,6.969]
[1723804648180,45.0,143.52,143.45,15.8441]
[1723804648360,45.0,143.52,143.5,6.9684]
[1723804648678,0.12549,143.52,143.5,6.9684]
[1723804648852,0.37647,143.52,143.49,6.9689]
[1723804651982,7.34417,143.52,143.48,6.9695]
[1723804652281,45.0,143.51,143.48,6.9695]
[1723804653469,0.37647,143.52,143.49,6.9691]
[1723804653677,45.37647,143.52,143.49,6.9691]
[1723804654157,52.34407,143.52,143.48,6.9694]
[1723804654352,45.37647,143.52,143.48,6.9694]
[1723804654988,45.37647,143.52,143.49,6.9691]
[1723804655484,0.12549,143.52,143.49,6.9691]
[1723804655791,0.25098,143.53,143.5,6.9685]
[1723804655958,51.46101341,143.57,143.48,6.2785]
[1723804655959,20.0,143.57,143.48,6.2785]
[1723804656154,6.966,143.56,143.52,6.9675]
[1723804656489,6.966,143.56,143.51,6.9679]
[1723804657261,0.693425,143.55,143.51,6.9679]
[1723804659389,45.693425,143.55,143.51,6.9679]
[1723804659682,0.693425,143.54,143.51,6.9679]
[1723804660694,45.0,143.55,143.51,6.9679]
[1723804661589,0.693425,143.54,143.51,6.9679]
[1723804669088,51.9663,143.55,143.51,6.9679]
[1723804669889,0.693425,143.54,143.51,6.9679]
[1723804672375,7.660125,143.54,143.48,6.2785]
[1723804672576,0.25098,143.53,143.5,6.9683]
[1723804672792,0.693425,143.57,143.5,15.2023]
[1723804674004,7.09119,143.56,143.52,6.9675]
[1723804674705,0.12549,143.56,143.52,6.9675]
[1723804674922,6.9649,143.58,143.54,6.9663]
[1723804675120,0.693425,143.57,143.54,6.9663]
[1723804675422,6.9644,143.59,143.55,6.9661]
[1723804676233,0.37647,143.58,143.55,6.9661]
[1723804679038,0.12549,143.58,143.53,7.41635163]
[1723804679339,0.12549,143.6,143.56,6.9653]
[1723804679507,45.50196,143.6,143.56,6.9653]
[1723804680333,37.65246088,143.64,143.58,6.9647]
[1723804680334,6.9629,143.62,143.58,6.9647]
[1723804680626,6.9625,143.63,143.59,6.9641]
[1723804680839,6.9625,143.63,143.55,17.18213456]
[1723804680840,6.9612,143.66,143.61,6.9629]
[1723804681221,6.9605,143.67,143.58,20.0]
[1723804681417,6.9605,143.67,143.61,15.789]
[1723804681619,6.9605,143.67,143.61,17.18144718]
[1723804682036,6.9605,143.67,143.62,6.9626]
[1723804683236,7.653925,143.67,143.62,6.9626]
[1723804683545,0.25098,143.66,143.62,6.9626]
[1723804685116,7.905305,143.66,143.62,6.9626]
[1723804685315,0.25098,143.65,143.62,6.9626]
[1723804686258,45.25098,143.65,143.61,22.7522]
[1723804688650,0.693425,143.64,143.61,22.7522]
[1723804688855,45.944405,143.65,143.61,22.7522]
[1723804689037,45.25098,143.65,143.61,22.7522]
[1723804689240,0.693425,143.64,143.61,22.7522]
[1723804691064,0.12549,143.63,143.61,6.9632]
[1723804691267,0.37647,143.63,143.61,6.9632]
[1723804692756,51.9615,143.65,143.61,6.9632]
[1723804692757,45.0,143.65,143.61,6.9632]
[1723804693063,0.12549,143.64,143.61,6.9632]
[1723804696583,0.12549,143.64,143.62,6.9626]
[1723804696771,0.12549,143.65,143.62,6.9626]
[1723804697090,0.37647,143.65,143.62,6.9626]
[1723804698677,0.37647,143.65,143.63,6.9622]
[1723804698979,0.37647,143.65,143.62,6.9627]
[1723804700286,7.33817,143.65,143.61,6.9631]
[1723804700460,8.031595,143.65,143.61,6.9631]
[1723804700794,0.12549,143.63,143.61,6.9631]
[1723804700956,0.25098,143.63,143.61,6.9631]
[1723804702075,0.25098,143.63,143.6,6.9636]
[1723804702271,0.25098,143.63,143.57,21.7872]
[1723804702477,0.12549,143.61,143.57,21.7872]
[1723804702687,0.25098,143.61,143.57,21.7872]
[1723804702869,0.12549,143.6,143.57,15.5226]
[1723804703189,0.12549,143.6,143.57,22.4877]
[1723804703190,0.25098,143.6,143.57,22.4877]
[1723804703864,0.944405,143.6,143.57,22.4877]
[1723804704372,0.25098,143.6,143.57,22.4877]
[1723804706963,6.9629,143.62,143.58,6.9646]
[1723804707165,0.12549,143.61,143.58,6.9646]
[1723804707778,7.08789,143.63,143.59,6.9642]
[1723804707998,0.12549,143.62,143.59,6.9642]
[1723804708960,0.12549,143.63,143.59,6.9642]
[1723804708961,0.25098,143.63,143.59,6.9642]
[1723804709158,45.25098,143.63,143.59,6.9642]
[1723804709660,0.12549,143.64,143.57,35.5226]
[1723804709893,0.25098,143.64,143.61,6.9632]
[1723804716497,0.25098,143.64,143.62,6.9627]
[1723804717006,0.25098,143.64,143.61,6.9631]
[1723804720911,0.25098,143.64,143.62,6.9627]
[1723804720912,0.818915,143.64,143.62,6.9627]
[1723804721202,0.12549,143.65,143.58,6.0234]
[1723804721398,0.12549,143.65,143.59,20.0]
[1723804721704,0.12549,143.65,143.63,6.9618]
[1723804724207,0.12549,143.65,143.62,6.9627]
[1723804724773,0.12549,143.65,143.63,6.9623]
[1723804726003,45.25098,143.66,143.63,6.9623]
[1723804726305,0.25098,143.66,143.63,6.9623]
[1723804726675,0.25098,143.66,143.64,6.9618]
[1723804727507,0.12549,143.66,143.64,6.9618]
[1723804728280,0.25098,143.66,143.64,6.9618]
[1723804729097,0.25098,143.66,143.63,6.962]
[1723804731245,0.25098,143.66,143.64,6.9617]
[1723804733406,0.12549,143.66,143.64,6.9617]
[1723804739847,0.25098,143.66,143.64,6.9617]
[1723804740208,0.12549,143.65,143.59,20.0]
[1723804740406,0.12549,143.65,143.61,6.9629]
[1723804740407,0.37647,143.65,143.61,6.9629]
[1723804740609,0.37647,143.65,143.58,15.2423]
[1723804740610,0.25098,143.64,143.6,6.9636]
[1723804740841,45.25098,143.64,143.61,6.9632]
[1723804741019,45.25098,143.64,143.6,6.9636]
[1723804741020,52.21278,143.64,143.6,6.9636]
[1723804741218,0.25098,143.63,143.6,6.9636]
[1723804743551,0.944405,143.63,143.59,6.9641]
[1723804743841,7.08879,143.61,143.54,16.4621]
[1723804744031,0.12549,143.61,143.57,6.9651]
[1723804744340,45.25098,143.61,143.57,6.9651]
[1723804744527,0.12549,143.6,143.57,6.9651]
[1723804744723,0.25098,143.6,143.57,6.9651]
[1723804745511,0.25098,143.6,143.56,6.9657]
[1723804745512,0.25098,143.59,143.56,6.9657]
[1723804745712,0.25098,143.58,143.56,6.9657]
[1723804746143,0.25098,143.58,143.51,29.08794087]
[1723804746341,0.25098,143.58,143.55,6.966]
[1723804746648,0.25098,143.58,143.52,6.9676]
[1723804746649,7.21638,143.57,143.52,6.9676]
[1723804747013,0.944405,143.56,143.53,6.9671]
[1723804747154,0.944405,143.56,143.52,6.9675]
[1723804747155,0.12549,143.55,143.52,6.9675]
[1723804748110,0.944405,143.55,143.51,6.968]
[1723804748308,0.944405,143.55,143.47,21.4293]
[1723804748309,0.12549,143.54,143.52,6.9676]
[1723804748530,0.25098,143.55,143.52,6.9676]
[1723804749626,0.25098,143.55,143.51,6.968]
[1723804749824,0.12549,143.54,143.51,6.968]
[1723804752124,0.12549,143.53,143.51,6.968]
[1723804752338,0.25098,143.53,143.5,6.9685]
[1723804752540,0.25098,143.53,143.47,21.4293]
[1723804752541,0.25098,143.53,143.49,6.9689]
[1723804752739,0.12549,143.52,143.49,6.9689]
[1723804752913,0.25098,143.52,143.49,6.9689]
[1723804753722,0.25098,143.52,143.5,6.9685]
[1723804753922,0.12549,143.52,143.5,6.9685]
[1723804754140,0.37647,143.53,143.51,6.9681]
[1723804754341,0.12549,143.53,143.51,6.9681]
[1723804754655,0.12549,143.55,143.51,6.9681]
[1723804754822,45.50196,143.55,143.51,6.9681]
[1723804756855,7.2704971,143.59,143.49,20.0]
[1723804757025,20.0,143.58,143.49,20.0]
[1723804757349,20.0,143.58,143.51,20.0]
[1723804757559,17.4797,143.61,143.52,15.595]
[1723804757856,6.9638,143.6,143.56,6.9653]
[1723804758056,18.0481,143.61,143.56,6.9653]
[1723804758232,0.12549,143.6,143.56,6.9653]
[1723804758426,7.08939,143.6,143.56,6.9653]
[1723804759257,45.25098,143.59,143.56,6.9653]
[1723804759742,0.25098,143.58,143.56,6.9653]
[1723804760565,0.12549,143.59,143.56,6.9653]
[1723804760849,0.12549,143.59,143.52,21.9876]
[1723804760850,45.37647,143.6,143.57,6.9652]
[1723804761057,45.37647,143.6,143.56,6.9655]
[1723804764540,52.34017,143.6,143.56,6.9655]
[1723804769633,0.37647,143.6,143.57,6.965]
[1723804771864,0.25098,143.6,143.57,6.965]
[1723804772741,6.9634,143.61,143.57,6.965]
[1723804773563,0.12549,143.6,143.56,6.9656]
[1723804773751,0.37647,143.6,143.56,6.9656]
[1723804777170,7.34027,143.6,143.56,6.9656]
[1723804777355,52.34027,143.6,143.56,6.9656]
[1723804780001,0.25098,143.6,143.57,6.965]
[1723804780142,6.9634,143.61,143.57,6.965]
[1723804781554,6.9637,143.6,143.56,6.9656]
[1723804781749,0.37647,143.59,143.56,6.9656]
[1723804782548,6.9637,143.6,143.56,6.9656]
[1723804783979,0.12549,143.57,143.52,21.9876]
[1723804784371,0.37647,143.57,143.53,6.9668]
[1723804784570,0.37647,143.57,143.52,21.9876]
[1723804786094,0.37647,143.57,143.54,6.9664]
[1723804786960,20.0,143.61,143.52,41.9876]
[1723804788186,7.08959,143.6,143.56,6.9657]
[1723804788377,52.21508,143.6,143.56,6.9657]
[1723804791898,7.08989,143.59,143.54,6.9663]
[1723804792075,0.25098,143.58,143.55,6.9662]
[1723804793767,0.12549,143.58,143.55,6.9662]
[1723804794088,7.08989,143.59,143.55,6.9662]
[1723804800575,7.783315,143.59,143.55,6.9662]
[1723804800776,7.08989,143.59,143.55,6.9662]
[1723804801127,0.693425,143.58,143.55,6.9662]
[1723804801306,0.12549,143.59,143.56,6.9656]
[1723804801507,0.37647,143.59,143.56,6.9656]
[1723804802878,7.34077,143.59,143.55,6.9661]
[1723804803393,0.37647,143.59,143.56,6.9657]
[1723804803586,0.37647,143.59,143.52,21.9876]
[1723804803912,7.34077,143.59,143.55,6.9661]
[1723804804919,0.12549,143.57,143.54,6.9665]
[1723804805100,0.25098,143.57,143.54,6.9665]
[1723804805410,0.37647,143.57,143.54,6.9666]
[1723804805983,1.069895,143.57,143.54,6.9666]
[1723804806394,0.37647,143.57,143.54,6.9666]
[1723804809498,0.37647,143.57,143.55,6.966]
[1723804809791,0.37647,143.57,143.54,6.9665]
[1723804810323,0.25098,143.57,143.54,6.9665]
[1723804810487,6.9644,143.59,143.54,6.9665]
[1723804810693,0.37647,143.58,143.54,6.9665]
[1723804811428,0.37647,143.58,143.55,6.966]
[1723804818400,0.12549,143.6,143.57,6.9651]
[1723804818603,45.37647,143.6,143.57,6.9651]
[1723804819500,45.37647,143.6,143.53,6.08655331]
[1723804819501,53.033995,143.6,143.53,6.08655331]
[1723804819736,0.12549,143.59,143.53,20.0]
[1723804819901,0.12549,143.58,143.53,20.0]
[1723804820313,0.12549,143.58,143.56,6.9656]
[1723804820639,0.12549,143.58,143.55,6.9658]
[1723804820803,0.25098,143.58,143.55,6.9658]
[1723804821310,0.25098,143.58,143.56,6.9657]
[1723804826007,0.12549,143.58,143.52,35.595]
[1723804826207,0.25098,143.59,143.53,6.08660137]
[1723804826529,0.25098,143.59,143.52,35.595]
[1723804826726,0.25098,143.59,143.53,6.08661289]
[1723804826903,0.25098,143.59,143.52,15.595]
[1723804827231,0.25098,143.59,143.56,6.9656]
[1723804828519,0.25098,143.59,143.58,6.9647]
[1723804828708,0.12549,143.59,143.58,6.9647]
[1723804828908,0.12549,143.59,143.57,6.9651]
[1723804829711,6.9631,143.62,143.58,6.9644]
[1723804830209,21.5247,143.64,143.56,20.0]
[1723804830210,6.9624,143.63,143.59,6.9642]
[1723804830730,0.12549,143.61,143.59,6.9642]
[1723804830934,0.25098,143.61,143.59,6.9642]
[1723804831437,0.12549,143.61,143.59,6.9642]
[1723804831905,6.962,143.64,143.6,6.9637]
[1723804832742,17.4015,143.65,143.61,6.9632]
[1723804833235,45.50196,143.64,143.61,6.9632]
[1723804833615,45.25098,143.64,143.62,6.9626]
[1723804833824,18.0454,143.67,143.6,20.0]
[1723804834011,13.67548033,143.69,143.58,10.44]
[1723804834012,7.26698033,143.69,143.63,16.0446]
[1723804834207,6.9602,143.68,143.64,6.9617]
[1723804837317,8.47555731,143.72,143.63,36.0446]
[1723804837516,10.44,143.72,143.63,37.43676917]
[1723804837829,10.44,143.72,143.63,16.0446]
[1723804838023,6.9592,143.7,143.66,6.9605]
[1723804838214,6.9592,143.7,143.65,6.9611]
[1723804838729,0.25098,143.69,143.65,6.9611]
[1723804840443,0.12549,143.67,143.64,6.9616]
[1723804840904,0.818915,143.67,143.64,6.9616]
[1723804842810,0.12549,143.67,143.64,6.9616]
[1723804844143,0.12549,143.67,143.65,6.9613]
[1723804844749,0.12549,143.68,143.65,6.9613]
[1723804845117,0.818915,143.68,143.65,6.9613]
[1723804846128,0.12549,143.68,143.65,6.9613]
[1723804847328,7.21048,143.69,143.65,6.9613]
[1723804847651,0.25098,143.69,143.65,6.9613]
[1723804850245,0.25098,143.69,143.63,36.0446]
[1723804850246,0.25098,143.69,143.66,6.9607]
[1723804852826,0.25098,143.69,143.67,6.9603]
[1723804853128,0.12549,143.69,143.67,6.9603]
[1723804853321,0.25098,143.69,143.67,6.9603]
[1723804853957,20.77170955,143.93,143.63,36.0446]
[1723804853958,15.43266268,143.75,143.7,6.9585]
[1723804854123,6.957,143.74,143.7,6.9585]
[1723804854834,6.9568,143.75,143.71,6.9583]
[1723804856438,0.693425,143.75,143.72,6.9578]
[1723804856962,17.3961,143.76,143.72,6.9578]
[1723804858044,0.12549,143.75,143.72,6.9578]
[1723804858238,0.25098,143.75,143.72,6.9578]
[1723804859450,0.25098,143.75,143.71,6.9582]
[1723804861044,0.25098,143.75,143.7,6.9588]
[1723804861045,10.44,143.74,143.7,6.9588]
[1723804861739,17.397,143.74,143.7,6.9588]
[1723804862353,10.44,143.74,143.7,6.9588]
[1723804862582,10.44,143.74,143.71,6.9583]
[1723804862742,7.33307,143.75,143.71,6.9583]
[1723804862944,20.12549,143.74,143.71,6.9583]
[1723804864259,20.12549,143.74,143.7,6.9587]
[1723804868232,20.0,143.74,143.71,6.9581]
[1723804870430,20.0,143.74,143.72,6.9577]
[1723804870643,0.12549,143.75,143.71,6.9583]
[1723804870859,0.12549,143.74,143.7,6.9586]
[1723804871059,0.25098,143.74,143.7,6.9586]
[1723804871240,20.25098,143.74,143.7,6.9586]
[1723804873885,20.12549,143.74,143.7,6.9586]
[1723804874068,20.0,143.74,143.7,6.9586]
[1723804874938,0.12549,143.77,143.71,20.0]
[1723804875174,52.45786,143.77,143.72,6.9578]
[1723804875863,6.9559,143.77,143.72,6.9578]
[1723804876374,20.0,143.76,143.72,6.9578]
[1723804878883,37.3962,143.76,143.72,6.9578]
[1723804884057,0.12549,143.75,143.69,20.0]
[1723804884263,7.08309,143.73,143.69,6.9591]
[1723804887103,6.957,143.74,143.7,6.9588]
[1723804887405,20.0,143.73,143.7,6.9588]